Cogmind - Beta 13 --- EXPLORER MODE // 2024.04.06 @ 17:03:37 Player: Ghosty Result: Destroyed by D-53 Grenadier with Mini Grenade Launcher Performance ------------- Evolutions (0) 0 Regions Visited (2) 400 Robots Destroyed (7) 35 Value Destroyed (137) 137 Prototype IDs (0) 0 Alien Tech Used (0) 0 Bonus (0) 0 TOTAL SCORE: 572 Bonus ------- None Cogmind --------- Core Integrity 0/250 Matter 300/300 Energy 100/100 System Corruption 1% Temperature Cool (0) Movement Core (50) Location -10/Mines Parts ------- > --- POWER (1) -------- (None) > --- PROPULSION (2) --- (None) > --- UTILITY (3) ------ (None) > --- WEAPON (2) ------- (None) > --- INVENTORY (5) ---- Light Ion Engine Light Nuclear Core Wheel Light Assault Rifle Welding Torch Peak State ------------ > --- POWER ------------ Light Ion Engine > --- PROPULSION ------- Wheel Wheel > --- UTILITY ---------- Improved Terrain Scanner Seismic Detector Light Armor Plating > --- WEAPON ----------- EM Pulse Gun Light Assault Rifle > --- INVENTORY -------- Light Ion Engine Wheel Wheel Medium Matter Pod [Rating: 10] Favorites ----------- Power Light Ion Engine Engine Light Ion Engine Propulsion Wheel Wheel Wheel Utility Improved Terrain Scanner Device Improved Terrain Scanner Storage Medium Matter Pod Protection Light Armor Plating Weapon EM Pulse Gun Energy Gun EM Pulse Gun Ballistic Gun Light Assault Rifle Special Weapon Welding Torch Special Melee Weapon Datajack Build | -11 -10 -10 ------- Run | Yrd Mat Min Slots Evolved 1 | . 1 . Power . | . . . Propulsion . | . . . Utility 1 | . 1 . Weapon . | . . . Parts Attached 17 | 10 7 . Power 1 | 1 . . Engine 1 | 1 . . Core . | . . . Reactor . | . . . Propulsion 3 | 2 1 . Treads . | . . . Leg . | . . . Wheel 3 | 2 1 . Hover . | . . . Flight . | . . . Utility 6 | 5 1 . Device 3 | 3 . . Storage 1 | 1 . . Processor . | . . . Hackware . | . . . Protection 2 | 1 1 . Artifact . | . . . Weapon 7 | 2 5 . Energy Gun 2 | 1 1 . Energy Cannon . | . . . Ballistic Gun 2 | 1 1 . Ballistic Cannon . | . . . Launcher . | . . . Special Weapon 1 | . 1 . Impact Weapon . | . . . Slashing Weapon . | . . . Piercing Weapon . | . . . Special Melee Weapon 2 | . 2 . Unidentified Prototypes . | . . . Parts Lost 8 | . . 8 Power 1 | . . 1 Propulsion 2 | . . 2 Utility 3 | . . 3 Weapon 2 | . . 2 Highest Loss Streak 8 | . . 8 To Critical Strikes . | . . . Average Slot Usage (%) 99 | . 100 72 Engine 11 | . 12 10 Wheel 24 | . 25 14 Device 24 | . 25 16 Protection 11 | . 12 10 Energy Gun 11 | . 11 10 Special Melee Weapon 11 | . 11 10 Naked Turns 4 | . . 4 Heaviest Build 11 | 9 11 11 Greatest Support 20 | 20 20 20 Greatest Overweight (x) 1 | . . 1 Average Overweight (x) . | . . . Largest Inventory Capacity 5 | 5 5 5 Average Capacity 5 | 5 5 5 Most Carried 5 | 5 5 5 Average Carried 4 | 3 4 5 Final Capacity 5 | 5 5 5 Final Carried 5 | 5 5 5 Class Distribution -------------------- 100% | Hacker-Mutant Dominant Class ---------------- Hacker-Mutant | -10/Materials Hacker-Mutant | -10/Mines Resources | -11 -10 -10 ----------- Run | Yrd Mat Min Matter Collected 436 | 345 91 . Remotely . | . . . Salvage Created 241 | 133 108 . Parts 20 | 15 5 . Haulers Intercepted . | . . . Recyclers Shooed . | . . . Parts Field Recycled . | . . . Retrieved Matter . | . . . Parts Self-Destructed . | . . . Prevented . | . . . Kills | -11 -10 -10 ------- Run | Yrd Mat Min Combat Hostiles Destroyed 3 | 1 2 . Guns 3 | 1 2 . Classes Destroyed 3 | 3 . . Worker 1 | 1 . . Tunneler 3 | 3 . . Grunt 3 | 1 2 . Best Kill Streak 4 | 4 2 . Combat Bots Only 2 | 1 2 . Max Kills in Single Turn 1 | 1 1 . Gunslinging . | . . . Exploded . | . . . Melee . | . . . Uniques/NPCs Destroyed . | . . . Combat | -11 -10 -10 -------- Run | Yrd Mat Min Hostile Shots Fired 34 | 4 14 16 Missed 6 | 1 2 3 Damage Taken 580 | 19 108 453 Core 267 | 6 20 241 Absorbed by Shields . | . . . Ignored by Resistances 344 | 13 69 262 Core Remaining (%) 97 | 97 . . Volleys Fired 25 | 8 14 3 Largest 2 | 2 1 1 Hottest 60 | 60 40 40 Shots Fired 33 | 16 14 3 Gun 33 | 16 14 3 Cannon . | . . . Launcher . | . . . Special . | . . . Kinetic 8 | 8 . . Thermal . | . . . Explosive . | . . . Electromagnetic 25 | 8 14 3 Robot Hit Streak 15 | 8 12 15 Robot Miss Streak 1 | 1 1 . Penetration Max . | . . . Secondary Targets . | . . . Shots Hit Robots 27 | 10 14 3 Core Hits 13 | 6 5 2 Critical Kills . | . . . Critical Parts Destroyed . | . . . Critical Strikes . | . . . Melee Attacks 2 | . 2 . Impact . | . . . Slashing . | . . . Piercing . | . . . Sneak Attacks . | . . . Combat Hostiles . | . . . Follow-up Attacks . | . . . Damage Inflicted 323 | 118 171 34 Guns 323 | 118 171 34 Cannons . | . . . Explosions . | . . . Melee . | . . . Ramming . | . . . Kinetic 28 | 28 . . Thermal . | . . . Explosive . | . . . Electromagnetic 295 | 90 171 34 Impact . | . . . Slashing . | . . . Piercing . | . . . Highest Corruption 1 | . 1 1 Average Corruption 1 | . 1 1 Corruption Purged . | . . . Corruption Blocked . | . . . Effects 7 | . 6 1 Message Errors 1 | . 1 . Matter Fused 2 | . 1 1 Heat Flow Errors 1 | . 1 . Energy Discharges 2 | . 2 . Data Loss (minor) 1 | . 1 . Overload Shots . | . . . Overflow Damage . | . . . Projectiles . | . . . Explosions . | . . . Melee . | . . . Knockbacks . | . . . Impact . | . . . Kinetic . | . . . Secondary . | . . . Self-Inflicted Damage . | . . . Shots . | . . . Rammed . | . . . Targets Rammed . | . . . Kicked . | . . . Crushed . | . . . Highest Temperature 126 | 16 126 12 Average Temperature 42 | 8 58 6 Received Heat Transfer 135 | 18 117 . Siege Activations . | . . . Robots Corrupted . | . . . Combat Hostiles . | . . . Parts Fried 2 | . 2 . Impact Corruptions . | . . . Robots Melted . | . . . Combat Hostiles . | . . . Parts Melted . | . . . Heat Transferred . | . . . Parts Sabotaged . | . . . Parts Stolen . | . . . Parts Stripped . | . . . Power Chain Reactions . | . . . Alert | -11 -10 -10 ------- Run | Yrd Mat Min Peak Influence 99 | 40 99 . Initial 19 | . 19 . Average 14 | 11 14 . Maximum Alert Level . | . . . Low Security (%) 100 | 100 100 100 Level 1 . | . . . Level 2 . | . . . Level 3 . | . . . Level 4 . | . . . Level 5 . | . . . High Security . | . . . Max Security . | . . . Squads Dispatched 1 | . 1 . Investigation 1 | . 1 . Extermination . | . . . Reinforcement . | . . . Assault . | . . . Garrison . | . . . Intercept . | . . . Searches Triggered . | . . . Construction Impeded . | . . . Haulers Reinforced . | . . . Active Scanning Responses . | . . . Cargo Convoy Interrupts . | . . . Stealth | -11 -10 -10 --------- Run | Yrd Mat Min Distress Signals 1 | . 1 . Communications Jammed . | . . . Distress Signals . | . . . Times Spotted 6 | 1 3 2 Peak Tracking Total 2 | 1 2 2 Tactical Retreats . | . . . Traps | -11 -10 -10 ------- Run | Yrd Mat Min Traps Triggered . | . . . Indirectly . | . . . Trap Hack Attempts . | . . . Triggered . | . . . Disarmed . | . . . Reprogrammed . | . . . Reused . | . . . Traps Extracted . | . . . Installed . | . . . Triggered . | . . . Machines | -11 -10 -10 ---------- Run | Yrd Mat Min Machines Disabled . | . . . Max in Single Turn . | . . . Machines Repaired . | . . . Machines Dismantled . | . . . Machines Sabotaged . | . . . Overloaded Fab Kills . | . . . Hacking | -11 -10 -10 --------- Run | Yrd Mat Min Machines Accessed 2 | . 2 . Terminals 1 | . 1 . Fabricators . | . . . Repair Stations . | . . . Recycling Units 1 | . 1 . Scanalyzers . | . . . Garrison Access . | . . . Total Hacks 7 | . 7 . Successful 3 | . 3 . Failed 4 | . 4 . Catastrophic . | . . . Database Lockouts . | . . . Manual . | . . . Terminals 5 | . 5 . Fabricators . | . . . Repair Stations . | . . . Recycling Units 2 | . 2 . Scanalyzers . | . . . Garrison Access . | . . . Terminal Hacks 1 | . 1 . Reinforcement Status 1 | . 1 . Fabricator Hacks . | . . . Repair Station Hacks . | . . . Recycling Unit Hacks 2 | . 2 . Process 1 | . 1 . Report Inventory 1 | . 1 . Scanalyzer . | . . . Garrison Access Hacks . | . . . Unauthorized Hacks . | . . . Terminals . | . . . Fabricators . | . . . Repair Stations . | . . . Recycling Units . | . . . Scanalyzers . | . . . Garrison Access . | . . . Data Cores Recovered . | . . . Used . | . . . Hacking Detections 2 | . 2 . Full Trace Events 1 | . 1 . Feedback Events 1 | . 1 . Corruption 1 | . 1 . Feedback Blocked . | . . . Robot Schematics Acquired . | . . . Robots Built . | . . . Authchips . | . . . Time . | . . . Total Robot Build Rating . | . . . Part Schematics Acquired . | . . . Parts Built . | . . . Authchips . | . . . Time . | . . . Total Part Build Rating . | . . . Parts Repaired . | . . . Time . | . . . Parts Recycled . | . . . Recycled Matter 46 | . 46 . Retrieved Matter . | . . . Retrieved Components . | . . . Parts Scanalyzed . | . . . Part Schematics Acquired . | . . . Parts Damaged . | . . . Bothacking | -11 -10 -10 ------------ Run | Yrd Mat Min Used RIF Installer . | . . . Robots Hacked 1 | . 1 . Non-combat . | . . . Combat 1 | . 1 . Robot Hacks Applied 1 | . 1 . parse_system 1 | . 1 . Relay Couplers Released . | . . . Fabnet Peak Effective % . | . . . Robots Rewired . | . . . Allies Hacked . | . . . Hacks Repelled . | . . . Allies | -11 -10 -10 -------- Run | Yrd Mat Min Total Allies . | . . . Largest Group . | . . . Highest-Rated Group . | . . . Highest-Rated Ally . | . . . Total Orders . | . . . Ally Attacks . | . . . Total Damage . | . . . Kills . | . . . Allies Corrupted . | . . . Allies Melted . | . . . Intel | -11 -10 -10 ------- Run | Yrd Mat Min Robot Analysis Total . | . . . Derelict Logs Recovered . | . . . Drone Launches . | . . . Drone Recoveries . | . . . Exploration | -11 -10 -10 ------------- Run | Yrd Mat Min Turns Passed 2099 | 189 1850 60 Spaces Moved 537 | 162 315 60 Core 65 | 62 . 3 Treads . | . . . Legs . | . . . Wheels 472 | 100 315 57 Hover . | . . . Flight . | . . . Fastest Speed 50 | 50 80 50 Average Speed 76 | 68 80 80 Slowest Speed 95 | 80 80 95 Overloaded Moves . | . . . Propulsion Burnouts . | . . . Robots Hopped . | . . . Cave-ins Triggered . | . . . Exploration Rate (%) 15 | 9 20 17 Regions Visited 2 Branch Regions 1 Pre-discovered Areas . | . . . Known Exits Taken 2 | 1 1 . Unknown Exits Taken . | . . . Scrap Searched . | . . . Spaces Dug . | . . . Terrain Destroyed . | . . . Melee . | . . . Projectile . | . . . AOE . | . . . Terrain Rammed . | . . . Walls Destroyed . | . . . Machines Disabled . | . . . Actions | -11 -10 -10 --------- Run | Yrd Mat Min Total 2190 | 226 1895 69 Wait 1582 | 28 1548 6 Move 535 | 161 314 60 Hop . | . . . Pick Up 17 | 14 3 . Fast Attach 2 | 2 . . Attach 7 | 6 1 . Detach . | . . . Swap 8 | 2 6 . Drop 7 | 5 2 . Fire 25 | 8 14 3 Melee 2 | . 2 . Ram . | . . . Kick . | . . . Crush . | . . . Escape Stasis . | . . . Rewire 5 | . 5 . Trap . | . . . Miscellaneous . | . . . Route ------- -11/Scrapyard -10/Materials -10/Mines History --------- Turn | Location | Event 2 | -11/Scrapyard | Met Revision 17 128 | -11/Scrapyard | Identified exit to Materials 128 | -11/Scrapyard | Discovered exit to Materials (range 8) 190 | -11/Scrapyard | Entered Materials 190 | -10/Materials | Evolved 1 slot: Utility x1 306 | -10/Materials | Build established: Hacker-Mutant 2026 | -10/Materials | Identified exit to Mines 2026 | -10/Materials | Discovered exit to Mines (range 7) 2040 | -10/Materials | Entered Mines 2054 | -10/Mines | Assembled infested the area 2097 | -10/Mines | Core integrity fell below 50% 2099 | -10/Mines | Core integrity fell below 20% 2100 | -10/Mines | Destroyed by D-53 Grenadier with Mini Grenade Launcher Last Messages --------------- 02078_ K-01 Serf collects debris. 02078_ Wheel destroyed. Overweight warning: You are carrying more than your current propulsion can efficiently support, which slows movement; see status page ('s') or the top of the parts list for the specific mass vs. support values. 02083_ K-01 Serf collects debris. 02085_ System corrupted: Matter fused (-10). 02087_ Pressure Siphon disabled. 02089_ The unstable cave ceiling collapses. 02089_ Imp. Terrain Scanner destroyed. 02089_ Wheel destroyed. 02089_ Seismic Detector destroyed. 02091_ The unstable cave ceiling collapses. 02091_ Lgt. Ion Engine destroyed. 02091_ Lgt. Armor Plating destroyed. 02092_ K-01 Serf destroyed. 02093_ EM Pulse Gun destroyed. 02096_ Datajack destroyed. 02096_ D-53 Grenadier misfires. [Achievement: First Step to Greatness] Map ----- +----------------------------------------------------+ | ???????????????????????????????????????# | | ???????????????????????????????????????# ####### | | ???????????????????????????????????????# #?????# | | ???????????????????????#?????????####### #?????# | | ?????????????????????????????????# #?????### | | ?????????????????????????????????# %######???????? | | ?????????????????????????????????# "#????????#? ?? | | ????????????????#????????????????# #????????????? | | ?????????????????????????????????# #????????????? | | ??????????????????#?????????????## #???#????????? | | ?????????????????????????####??## #??#?????????? | | ????????????????????????## #### #????????????? | | ????????????????????????# ## #?????##??#??? | | ????????????????????????# ##?????#??????? | | ????????????????????????## #?????????????? | | ????????????????????????## ##??????????#?? | | ????????????????????????# ##???????????? | | ????????????????????????# dd #???????????? | | ????????????????????????# #???????????? | | ??????????????????###?###! ##???????????? | | ?????????????# #### ## = = #####??? ????????? | | ?????????????# #?????????? ?????? | | ????????????????## " ##?????? ????????? | | ?????????????# ### #?#?#???????????? | | ????????????# " ##???????????????? | | ???????????# @ #??????????????? | | ????????????? ### #??????????????? | | ?????????????????## #????#????????? | | ??????????????????### #?????????????? | | ????????????????????### ##?????????????? | | ??????????????????????##### ##??????????????? | | ??????????????????????????? ####???????????????? | | ????????????????????????#??# ##??????????????????? | | ????????????????????????????##???????????????????? | | ?????????????????????????????????????????????????? | | ?????????????????????????????????????????????????? | | ?????????????????????????????????????????????????? | | ?????????????????????????????????????????????????? | | ?????????????????????????????????? ??????????????? | | ?????????????????????????????????????????????????? | | ?????????????????????????????????????????????????? | | ?????????????????????????????????????????????????? | | ?????????????????????????????????????????????????? | | ?????????????????????????????????????????????????? | | ?????????????????????????????????????????????????? | | ?????????????????????????????????????????????????? | | ?????????????????????????????????????????????????? | | ?????????????????????????????????????????????????? | | ?????????????????????????????????????????????????? | | ?????????????????????????????????????????????????? | +----------------------------------------------------+ Best States ------------- Heat Dissipation 25 Energy Generation 10 Energy Capacity 125 Matter Stores 389 Matter Capacity 400 Sight Range 16 Terrain Scan Range 16 Terrain Scan Density 10 Armor Coverage 150 Resistance: KI 35 Resistance: TH 35 Resistance: EX 35 Resistance: EM 35 Resistance: I 35 Resistance: S 35 Resistance: P 35 Utility Shielding 33 Evasion (%) 50 Offensive Hacking 20 Item Schematics ----------------- None Robot Schematics ------------------ None Fabricated ------------ Nothing Alien Tech Used ----------------- None Achievements -------------- Crack Shot First Step to Greatness One Hack Too Far Challenges ------------ None Game ------ Seed CobblerTerrainMicrothruster Manual? 0 Play Time 00:44:36 Cumulative 0.7 hours Start 2024.04.06 @ 16:12:09 End 2024.04.06 @ 17:03:37 Sessions 3 Manual Loads 0 Difficulty Explorer Special Mode None Game No. 1 Rogue 0 Adventurer 0 Explorer 1 Win Type - Total 0 Types 0/0/0/0/0/0/0/0/0 Lore% 0 Gallery% 1 Achievement% 1 Wizard Run 0 Options --------- Layout 0 ASCII 1 Keyboard 1 Movement Mouse Keybinds 0 Fullscreen 2 Font 24/Crisp Map View 76x50 Zoom Use 0% Tactical HUD 1 Map Filters NONE Filters NONE Steam 1 RUN: a2ec8779-d1d7-4cb8-9e7a-93b12961f077